[Event "2019 National Open"]
[Site "Las Vegas"]
[Date "2019.06.16"]
[Round "8"]
[White "Abrahamyan, Tatev"]
[Black "Shtembuliak, Evgeny"]
[Result "0-1"]
[ECO "B06"]
[WhiteElo "2385"]
[BlackElo "2538"]
[PlyCount "52"]
[EventDate "2019.??.??"]
[TimeControl "5400+30"]
[WhiteClock "0:26:57"]
[BlackClock "0:01:20"]

1. e4 {[%emt 0:00:00]} g6 {[%emt 0:00:08]} 2. d4 {[%emt 0:00:12]} Bg7 {[%emt 0:00:05]} 3. Nc3 {[%emt 0:01:46]} d6 {[%emt 0:00:10]} 4. Be3 {[%emt 0:05:08]} a6 {[%emt 0:00:31]} 5. Qd2 {[%emt 0:00:52]} b5 {[%emt 0:03:26]} 6. f3 {[%emt 0:02:23]} Nd7 {[%emt 0:01:17]} 7. g4 {[%emt 0:03:54]} Bb7 {[%emt 0:07:52]} 8. h4 {[%emt 0:03:45]} h5 {[%emt 0:01:46]} 9. gxh5 {[%emt 0:07:38]} Rxh5 {[%emt 0:00:31]} 10. Nge2 {[%emt 0:02:27]} e5 {[%emt 0:06:28]} 11. O-O-O {[%emt 0:31:33]} Rxh4 {[%emt 0:02:40]} 12. Rxh4 {[%emt 0:02:08]} Qxh4 {[%emt 0:00:05]} 13. Nd5 {[%emt 0:00:16]} Bxd5 {[%emt 0:06:46]} 14. exd5 {[%emt 0:00:00]} Kf8 {[%emt 0:05:26]} 15. Qc3 {[%emt 0:04:17]} exd4 {[%emt 0:01:47]} 16. Bxd4 {[%emt 0:05:08]} Bxd4 {[%emt 0:00:26]} 17. Rxd4 {[%emt 0:04:17]} Qf2 {[%emt 0:02:07]} 18. Rd1 {[%emt 0:06:00]} Nc5 {[%emt 0:01:28]} 19. Qa5 {[%emt 0:04:52]} Rc8 {[%emt 0:04:38]} 20. Nd4 {[%emt 0:04:42]} Nf6 {[%emt 0:02:02]} 21. c4 {[%emt 0:02:00]} Kg8 {[%emt 0:22:32]} 22. cxb5 {[%emt 0:04:24]} axb5 {[%emt 0:00:39]} 23. Bh3 {[%emt 0:00:32]} Re8 {[%emt 0:01:06]} 24. Qxb5 {[%emt 0:02:34]} Re1 {[%emt 0:00:34]} 25. Qc4 {[%emt 0:01:02]} Nxd5 {[%emt 0:01:10]} 26. Qc2 {[%emt 0:00:00]} Ne3 {[%emt 0:00:23]} 0-1

[Event "2019 National Open"]
[Site "Las Vegas"]
[Date "2019.06.16"]
[Round "8"]
[White "Griffith, Kyron"]
[Black "Nestorovic, Nikola"]
[Result "0-1"]
[ECO "B32"]
[WhiteElo "2336"]
[BlackElo "2481"]
[PlyCount "48"]
[EventDate "2019.??.??"]
[TimeControl "5400+30"]
[WhiteClock "0:28:53"]
[BlackClock "0:02:18"]

1. e4 {[%emt 0:00:00]} c5 {[%emt 0:00:04]} 2. Nf3 {[%emt 0:00:12]} Nc6 {[%emt 0:00:08]} 3. d4 {[%emt 0:00:01]} cxd4 {[%emt 0:00:04]} 4. Nxd4 {[%emt 0:00:03]} e5 {[%emt 0:00:01]} 5. Nf5 {[%emt 0:00:26]} Nf6 {[%emt 0:00:16]} 6. Nc3 {[%emt 0:05:13]} d5 {[%emt 0:00:07]} 7. Nxd5 {[%emt 0:01:41]} Nxe4 {[%emt 0:05:01]} 8. Nfe3 {[%emt 0:11:53]} Be6 {[%emt 0:05:06]} 9. Bc4 {[%emt 0:04:37]} Qd7 {[%emt 0:20:40]} 10. c3 {[%emt 0:17:03]} O-O-O {[%emt 0:01:15]} 11. O-O {[%emt 0:07:23]} f5 {[%emt 0:00:59]} 12. g3 {[%emt 0:13:07]} g5 {[%emt 0:06:35]} 13. Nb4 {[%emt 0:08:39]} Bxb4 {[%emt 0:13:26]} 14. cxb4 {[%emt 0:01:20]} Nd4 {[%emt 0:03:45]} 15. f3 {[%emt 0:05:41]} Nf6 {[%emt 0:00:53]} 16. b3 {[%emt 0:02:31]} f4 {[%emt 0:02:17]} 17. Bxe6 {[%emt 0:00:43]} Qxe6 {[%emt 0:00:09]} 18. Ng4 {[%emt 0:05:45]} Nxg4 {[%emt 0:02:03]} 19. fxg4 {[%emt 0:00:00]} e4 {[%emt 0:00:20]} 20. Qe1 {[%emt 0:02:48]} Rhe8 {[%emt 0:07:55]} 21. gxf4 {[%emt 0:08:15]} Nf3+ {[%emt 0:00:18]} 22. Rxf3 {[%emt 0:00:03]} exf3 {[%emt 0:00:07]} 23. Qxe6+ {[%emt 0:00:40]} Rxe6 {[%emt 0:00:06]} 24. Kf2 {[%emt 0:01:38]} Rd3 {[%emt 0:01:32]} 0-1

[Event "2019 National Open"]
[Site "Las Vegas"]
[Date "2019.06.16"]
[Round "8"]
[White "Daggupati, Balaji"]
[Black "Prasanna Raghuram Rao"]
[Result "1/2-1/2"]
[ECO "B47"]
[WhiteElo "2331"]
[BlackElo "2448"]
[PlyCount "26"]
[EventDate "2019.??.??"]
[TimeControl "5400+30"]
[WhiteClock "1:32:18"]
[BlackClock "1:25:04"]

1. e4 {[%emt 0:00:00]} c5 {[%emt 0:04:05]} 2. Nf3 {[%emt 0:00:00]} e6 {[%emt 0:00:00]} 3. d4 {[%emt 0:00:00]} cxd4 {[%emt 0:00:00]} 4. Nxd4 {[%emt 0:00:00]} Nc6 {[%emt 0:00:00]} 5. Nc3 {[%emt 0:00:00]} Qc7 {[%emt 0:00:00]} 6. Be2 {[%emt 0:00:01]} Nf6 {[%emt 0:00:01]} 7. O-O {[%emt 0:00:01]} Be7 {[%emt 0:00:01]} 8. Kh1 {[%emt 0:00:00]} O-O {[%emt 0:00:00]} 9. f4 {[%emt 0:00:00]} d6 {[%emt 0:00:04]} 10. Be3 {[%emt 0:00:01]} Nxd4 {[%emt 0:00:01]} 11. Qxd4 {[%emt 0:00:01]} b6 {[%emt 0:00:00]} 12. Bf3 {[%emt 0:00:00]} Nd7 {[%emt 0:00:00]} 13. Nb5 {[%emt 0:11:22]} Qb8 {[%emt 0:00:00]} 1/2-1/2

[Event "2019 National Open"]
[Site "Las Vegas"]
[Date "2019.06.16"]
[Round "8"]
[White "Ippolito, Dean"]
[Black "Li, Ruifeng"]
[Result "1/2-1/2"]
[ECO "D11"]
[WhiteElo "2331"]
[BlackElo "2546"]
[PlyCount "59"]
[EventDate "2019.??.??"]
[TimeControl "5400+30"]
[WhiteClock "0:43:58"]
[BlackClock "0:01:59"]

1. d4 {[%emt 0:00:00]} d5 {[%emt 0:00:15]} 2. c4 {[%emt 0:00:18]} c6 {[%emt 0:00:04]} 3. Nf3 {[%emt 0:00:12]} Nf6 {[%emt 0:00:04]} 4. Qb3 {[%emt 0:00:21]} dxc4 {[%emt 0:00:29]} 5. Qxc4 {[%emt 0:00:00]} Bg4 {[%emt 0:00:05]} 6. Nbd2 {[%emt 0:00:20]} e6 {[%emt 0:00:21]} 7. g3 {[%emt 0:00:12]} Be7 {[%emt 0:00:23]} 8. Bg2 {[%emt 0:00:05]} Nbd7 {[%emt 0:00:29]} 9. O-O {[%emt 0:00:52]} O-O {[%emt 0:00:15]} 10. Qb3 {[%emt 0:01:00]} b5 {[%emt 0:03:55]} 11. a4 {[%emt 0:07:50]} a6 {[%emt 0:00:12]} 12. Ne5 {[%emt 0:03:04]} Nxe5 {[%emt 0:01:07]} 13. dxe5 {[%emt 0:00:00]} Nd5 {[%emt 0:00:12]} 14. e4 {[%emt 0:09:11]} Nb4 {[%emt 0:01:16]} 15. Nf3 {[%emt 0:29:44]} Qd3 {[%emt 0:14:06]} 16. Qxd3 {[%emt 0:02:01]} Nxd3 {[%emt 0:00:05]} 17. Nd4 {[%emt 0:01:25]} Bc5 {[%emt 0:02:17]} 18. Be3 {[%emt 0:01:31]} Bxd4 {[%emt 0:06:30]} 19. Bxd4 {[%emt 0:00:00]} c5 {[%emt 0:00:07]} 20. Be3 {[%emt 0:00:48]} Be2 {[%emt 0:00:42]} 21. Rfb1 {[%emt 0:00:42]} c4 {[%emt 0:00:25]} 22. f4 {[%emt 0:08:56]} b4 {[%emt 0:01:01]} 23. Bf1 {[%emt 0:00:58]} Bf3 {[%emt 0:03:07]} 24. b3 {[%emt 0:04:19]} Bxe4 {[%emt 0:14:56]} 25. bxc4 {[%emt 0:00:01]} Rfd8 {[%emt 0:02:39]} 26. Rb3 {[%emt 0:02:12]} Rd7 {[%emt 0:01:35]} 27. Be2 {[%emt 0:06:48]} Rad8 {[%emt 0:02:39]} 28. Bb6 {[%emt 0:02:52]} Rc8 {[%emt 0:00:12]} 29. Rd1 {[%emt 0:05:32]} Rxc4 {[%emt 0:01:04]} 30. Bxd3 {[%emt 0:11:47]} 1/2-1/2

[Event "2019 National Open"]
[Site "Las Vegas"]
[Date "2019.06.16"]
[Round "8"]
[White "Della Morte, Pablo"]
[Black "Katz, Alexander"]
[Result "0-1"]
[ECO "B07"]
[WhiteElo "2270"]
[BlackElo "2427"]
[PlyCount "68"]
[EventDate "2019.??.??"]
[TimeControl "5400+30"]
[WhiteClock "0:27:50"]
[BlackClock "0:02:50"]

1. e4 {[%emt 0:00:00]} d6 {[%emt 0:00:19]} 2. d4 {[%emt 0:00:27]} Nf6 {[%emt 0:00:04]} 3. Nc3 {[%emt 0:00:06]} g6 {[%emt 0:00:04]} 4. Bg5 {[%emt 0:03:00]} Bg7 {[%emt 0:00:06]} 5. Qd2 {[%emt 0:00:05]} h6 {[%emt 0:00:08]} 6. Bf4 {[%emt 0:02:16]} g5 {[%emt 0:00:13]} 7. Bg3 {[%emt 0:00:03]} Nh5 {[%emt 0:00:05]} 8. O-O-O {[%emt 0:00:31]} Nc6 {[%emt 0:01:52]} 9. Qe3 {[%emt 0:01:29]} e6 {[%emt 0:02:14]} 10. d5 {[%emt 0:24:57]} Ne5 {[%emt 0:03:21]} 11. Be2 {[%emt 0:03:14]} Nf4 {[%emt 0:04:43]} 12. dxe6 {[%emt 0:18:44]} Nxe2+ {[%emt 0:09:11]} 13. Ngxe2 {[%emt 0:00:05]} Bxe6 {[%emt 0:00:05]} 14. h4 {[%emt 0:03:53]} c6 {[%emt 0:09:39]} 15. Nd4 {[%emt 0:09:34]} g4 {[%emt 0:21:11]} 16. Nxe6 {[%emt 0:06:30]} fxe6 {[%emt 0:00:00]} 17. Qd4 {[%emt 0:02:34]} Ke7 {[%emt 0:00:18]} 18. h5 {[%emt 0:01:52]} Bf6 {[%emt 0:00:10]} 19. Bh4 {[%emt 0:02:37]} Rf8 {[%emt 0:02:11]} 20. Qe3 {[%emt 0:03:46]} Bxh4 {[%emt 0:00:22]} 21. Rxh4 {[%emt 0:00:02]} Rf6 {[%emt 0:00:14]} 22. f4 {[%emt 0:04:58]} gxf3 {[%emt 0:01:29]} 23. gxf3 {[%emt 0:00:11]} Nxf3 {[%emt 0:03:37]} 24. Rf4 {[%emt 0:00:55]} Qf8 {[%emt 0:01:49]} 25. Ne2 {[%emt 0:04:15]} e5 {[%emt 0:08:53]} 26. Rxf6 {[%emt 0:01:09]} Qxf6 {[%emt 0:00:00]} 27. Ng3 {[%emt 0:01:22]} Nd4 {[%emt 0:02:07]} 28. Rf1 {[%emt 0:01:47]} Qg7 {[%emt 0:02:00]} 29. c3 {[%emt 0:00:42]} Qxg3 {[%emt 0:00:37]} 30. Qxh6 {[%emt 0:00:23]} Ne2+ {[%emt 0:01:29]} 31. Kd2 {[%emt 0:00:11]} Nf4 {[%emt 0:00:21]} 32. Qh7+ {[%emt 0:00:23]} Kd8 {[%emt 0:00:12]} 33. Qh8+ {[%emt 0:01:39]} Kc7 {[%emt 0:00:01]} 34. Qxa8 {[%emt 0:00:30]} Qd3+ {[%emt 0:00:05]} 0-1

[Event "2019 National Open"]
[Site "Las Vegas"]
[Date "2019.06.16"]
[Round "8"]
[White "Yanayt, Eugene"]
[Black "Nathan, Krishna"]
[Result "1-0"]
[ECO "D11"]
[WhiteElo "2241"]
[BlackElo "2098"]
[PlyCount "89"]
[EventDate "2019.??.??"]
[TimeControl "5400+30"]
[WhiteClock "0:53:57"]
[BlackClock "0:22:54"]

1. d4 {[%emt 0:00:00]} d5 {[%emt 0:00:01]} 2. c4 {[%emt 0:00:53]} c6 {[%emt 0:00:01]} 3. Nf3 {[%emt 0:00:24]} Nf6 {[%emt 0:00:20]} 4. Qb3 {[%emt 0:05:14]} dxc4 {[%emt 0:00:00]} 5. Qxc4 {[%emt 0:00:01]} Bf5 {[%emt 0:00:01]} 6. g3 {[%emt 0:00:01]} e6 {[%emt 0:00:01]} 7. Bg2 {[%emt 0:00:01]} Nbd7 {[%emt 0:00:29]} 8. O-O {[%emt 0:00:42]} Be7 {[%emt 0:00:25]} 9. e3 {[%emt 0:01:48]} O-O {[%emt 0:00:26]} 10. Qe2 {[%emt 0:01:06]} Qc7 {[%emt 0:04:19]} 11. Rd1 {[%emt 0:06:37]} Rfd8 {[%emt 0:04:56]} 12. Nc3 {[%emt 0:00:01]} Ne4 {[%emt 0:01:36]} 13. Ne1 {[%emt 0:01:15]} Ndf6 {[%emt 0:02:16]} 14. f3 {[%emt 0:07:17]} Nxc3 {[%emt 0:00:00]} 15. bxc3 {[%emt 0:00:00]} e5 {[%emt 0:04:44]} 16. e4 {[%emt 0:07:58]} Be6 {[%emt 0:00:00]} 17. Be3 {[%emt 0:00:01]} b5 {[%emt 0:05:29]} 18. Nd3 {[%emt 0:09:47]} Nd7 {[%emt 0:04:05]} 19. f4 {[%emt 0:09:14]} exd4 {[%emt 0:01:06]} 20. cxd4 {[%emt 0:01:28]} Bc4 {[%emt 0:06:28]} 21. Qc2 {[%emt 0:08:47]} f6 {[%emt 0:03:21]} 22. Nb2 {[%emt 0:06:02]} Bf7 {[%emt 0:03:29]} 23. a4 {[%emt 0:13:40]} b4 {[%emt 0:00:00]} 24. Rac1 {[%emt 0:05:12]} Rac8 {[%emt 0:00:01]} 25. d5 {[%emt 0:05:08]} c5 {[%emt 0:01:26]} 26. Qd3 {[%emt 0:05:55]} Bd6 {[%emt 0:03:27]} 27. Nc4 {[%emt 0:00:00]} Rb8 {[%emt 0:03:41]} 28. Bh3 {[%emt 0:00:00]} Bf8 {[%emt 0:05:36]} 29. e5 {[%emt 0:01:21]} fxe5 {[%emt 0:00:00]} 30. d6 {[%emt 0:00:00]} Qc6 {[%emt 0:00:02]} 31. fxe5 {[%emt 0:00:01]} Re8 {[%emt 0:00:01]} 32. Bf4 {[%emt 0:00:00]} Be6 {[%emt 0:00:00]} 33. Na5 {[%emt 0:00:00]} Qb6 {[%emt 0:00:00]} 34. Bxe6+ {[%emt 0:00:00]} Rxe6 {[%emt 0:00:00]} 35. Qd5 {[%emt 0:00:00]} Rbe8 {[%emt 0:00:01]} 36. Nb3 {[%emt 0:00:00]} c4+ {[%emt 0:00:00]} 37. Nd4 {[%emt 0:00:00]} Kh8 {[%emt 0:00:04]} 38. a5 {[%emt 0:00:00]} Rxe5 {[%emt 0:00:00]} 39. Bxe5 {[%emt 0:00:00]} Rxe5 {[%emt 0:00:00]} 40. Qxe5 {[%emt 0:00:00]} Nxe5 {[%emt 0:00:00]} 41. axb6 {[%emt 0:00:00]} axb6 {[%emt 0:00:01]} 42. Ne6 {[%emt 0:00:00]} Bxd6 {[%emt 0:00:01]} 43. Rxd6 {[%emt 0:00:00]} Kg8 {[%emt 0:00:00]} 44. Rxb6 {[%emt 0:00:00]} b3 {[%emt 0:00:09]} 45. Rb7 {[%emt 0:00:00]} 1-0

[Event "2019 National Open"]
[Site "Las Vegas"]
[Date "2019.06.16"]
[Round "8"]
[White "Li, Eric"]
[Black "Kavutskiy, Konstantin"]
[Result "0-1"]
[ECO "E82"]
[WhiteElo "2155"]
[BlackElo "2417"]
[PlyCount "76"]
[EventDate "2019.??.??"]
[TimeControl "5400+30"]
[WhiteClock "0:50:58"]
[BlackClock "0:06:49"]

1. d4 {[%emt 0:00:00]} Nf6 {[%emt 0:00:04]} 2. c4 {[%emt 0:00:07]} g6 {[%emt 0:00:04]} 3. Nc3 {[%emt 0:00:06]} Bg7 {[%emt 0:00:05]} 4. e4 {[%emt 0:00:02]} d6 {[%emt 0:00:05]} 5. f3 {[%emt 0:00:11]} O-O {[%emt 0:00:07]} 6. Be3 {[%emt 0:00:09]} b6 {[%emt 0:00:21]} 7. Qd2 {[%emt 0:01:11]} c5 {[%emt 0:00:16]} 8. Nge2 {[%emt 0:00:12]} Ba6 {[%emt 0:00:18]} 9. b3 {[%emt 0:01:15]} e6 {[%emt 0:00:39]} 10. Rd1 {[%emt 0:04:30]} Nc6 {[%emt 0:01:13]} 11. d5 {[%emt 0:03:44]} exd5 {[%emt 0:00:07]} 12. cxd5 {[%emt 0:07:21]} Ne5 {[%emt 0:00:43]} 13. Nc1 {[%emt 0:03:06]} Bxf1 {[%emt 0:00:36]} 14. Rxf1 {[%emt 0:00:38]} a6 {[%emt 0:02:20]} 15. a4 {[%emt 0:01:00]} Rb8 {[%emt 0:00:44]} 16. Kf2 {[%emt 0:12:33]} b5 {[%emt 0:00:59]} 17. Kg1 {[%emt 0:05:01]} Qa5 {[%emt 0:04:31]} 18. axb5 {[%emt 0:01:32]} axb5 {[%emt 0:00:23]} 19. Nd3 {[%emt 0:02:59]} Nxd3 {[%emt 0:09:39]} 20. Qxd3 {[%emt 0:00:06]} Ng4 {[%emt 0:00:56]} 21. fxg4 {[%emt 0:08:56]} Qxc3 {[%emt 0:00:42]} 22. Qxc3 {[%emt 0:05:11]} Bxc3 {[%emt 0:00:06]} 23. Rf3 {[%emt 0:02:43]} b4 {[%emt 0:01:12]} 24. Rdf1 {[%emt 0:08:30]} Rb7 {[%emt 0:00:43]} 25. Bf4 {[%emt 0:07:41]} Rd7 {[%emt 0:01:38]} 26. Kh1 {[%emt 0:00:51]} Ra8 {[%emt 0:05:18]} 27. g5 {[%emt 0:02:00]} Ra2 {[%emt 0:12:17]} 28. R3f2 {[%emt 0:04:48]} Rxf2 {[%emt 0:03:38]} 29. Rxf2 {[%emt 0:00:02]} Ra7 {[%emt 0:02:14]} 30. g3 {[%emt 0:02:21]} c4 {[%emt 0:03:42]} 31. bxc4 {[%emt 0:09:13]} b3 {[%emt 0:00:09]} 32. Bxd6 {[%emt 0:00:12]} Ra2 {[%emt 0:01:11]} 33. Kg2 {[%emt 0:03:08]} Rxf2+ {[%emt 0:00:10]} 34. Kxf2 {[%emt 0:00:06]} b2 {[%emt 0:00:05]} 35. c5 {[%emt 0:00:07]} b1=Q {[%emt 0:00:07]} 36. c6 {[%emt 0:00:06]} Qxe4 {[%emt 0:00:24]} 37. c7 {[%emt 0:00:09]} Bd4+ {[%emt 0:00:11]} 38. Kf1 {[%emt 0:00:24]} Qf3+ {[%emt 0:00:05]} 0-1

[Event "2019 National Open"]
[Site "Las Vegas"]
[Date "2019.06.16"]
[Round "9"]
[White "Shabalov, Alexander"]
[Black "Guo, Arthur"]
[Result "1-0"]
[ECO "B90"]
[WhiteElo "2528"]
[BlackElo "2286"]
[PlyCount "223"]
[EventDate "2019.??.??"]
[TimeControl "5400+30"]
[WhiteClock "0:02:40"]
[BlackClock "0:04:46"]

1. e4 {[%emt 0:00:00]} c5 {[%emt 0:00:12]} 2. Nf3 {[%emt 0:00:07]} d6 {[%emt 0:00:03]} 3. d4 {[%emt 0:00:04]} cxd4 {[%emt 0:00:14]} 4. Nxd4 {[%emt 0:00:06]} Nf6 {[%emt 0:00:12]} 5. Nc3 {[%emt 0:00:05]} a6 {[%emt 0:00:01]} 6. Rg1 {[%emt 0:00:31]} Qc7 {[%emt 0:01:40]} 7. g4 {[%emt 0:00:21]} e6 {[%emt 0:01:10]} 8. g5 {[%emt 0:00:38]} Nfd7 {[%emt 0:00:10]} 9. h4 {[%emt 0:06:51]} b5 {[%emt 0:01:43]} 10. a3 {[%emt 0:00:04]} Bb7 {[%emt 0:01:02]} 11. h5 {[%emt 0:00:31]} g6 {[%emt 0:04:55]} 12. Be3 {[%emt 0:03:21]} Nc5 {[%emt 0:02:21]} 13. Qg4 {[%emt 0:12:15]} Nbd7 {[%emt 0:05:30]} 14. O-O-O {[%emt 0:00:19]} O-O-O {[%emt 0:08:08]} 15. Kb1 {[%emt 0:01:28]} Kb8 {[%emt 0:06:22]} 16. h6 {[%emt 0:04:56]} Nb6 {[%emt 0:05:09]} 17. Nb3 {[%emt 0:08:07]} Be7 {[%emt 0:04:16]} 18. Be2 {[%emt 0:07:07]} Rc8 {[%emt 0:11:21]} 19. Rc1 {[%emt 0:00:18]} Rhd8 {[%emt 0:04:14]} 20. Rgd1 {[%emt 0:00:51]} Ncd7 {[%emt 0:09:47]} 21. f4 {[%emt 0:14:21]} d5 {[%emt 0:09:50]} 22. exd5 {[%emt 0:02:20]} exd5 {[%emt 0:01:02]} 23. Bd4 {[%emt 0:03:21]} Nc4 {[%emt 0:03:58]} 24. Rf1 {[%emt 0:06:43]} f5 {[%emt 0:05:45]} 25. gxf6 {[%emt 0:00:38]} Bxf6 {[%emt 0:01:32]} 26. f5 {[%emt 0:03:00]} gxf5 {[%emt 0:03:50]} 27. Rxf5 {[%emt 0:00:34]} Rg8 {[%emt 0:01:12]} 28. Qf4 {[%emt 0:04:59]} Qxf4 {[%emt 0:05:52]} 29. Rxf4 {[%emt 0:00:00]} Bg5 {[%emt 0:00:21]} 30. Rf7 {[%emt 0:00:04]} Bxc1 {[%emt 0:00:10]} 31. Kxc1 {[%emt 0:01:25]} Nf8 {[%emt 0:00:00]} 32. Nc5 {[%emt 0:01:31]} Rc7 {[%emt 0:00:00]} 33. Rg7 {[%emt 0:01:28]} Rcxg7 {[%emt 0:00:00]} 34. hxg7 {[%emt 0:00:10]} Ng6 {[%emt 0:00:00]} 35. Nd7+ {[%emt 0:00:55]} Ka8 {[%emt 0:02:23]} 36. Bg4 {[%emt 0:02:00]} Nge5 {[%emt 0:01:44]} 37. Nxe5 {[%emt 0:04:07]} Rxg7 {[%emt 0:00:00]} 38. Be2 {[%emt 0:00:44]} Re7 {[%emt 0:01:04]} 39. Nd3 {[%emt 0:00:38]} Ne3 {[%emt 0:01:09]} 40. Bc5 {[%emt 0:01:04]} Re6 {[%emt 0:00:28]} 41. Nf4 {[%emt 0:01:46]} Re5 {[%emt 0:01:04]} 42. Bd4 {[%emt 0:00:37]} Re7 {[%emt 0:00:21]} 43. Bd3 {[%emt 0:00:28]} Nc4 {[%emt 0:00:00]} 44. b3 {[%emt 0:05:44]} Re1+ {[%emt 0:00:00]} 45. Nd1 {[%emt 0:00:07]} Ne5 {[%emt 0:01:25]} 46. Bxh7 {[%emt 0:04:29]} Nf3 {[%emt 0:00:05]} 47. Bf2 {[%emt 0:00:15]} Rh1 {[%emt 0:00:33]} 48. Bd3 {[%emt 0:00:27]} Ng5 {[%emt 0:00:00]} 49. Ne2 {[%emt 0:00:09]} Bc8 {[%emt 0:00:00]} 50. Ng3 {[%emt 0:00:35]} Rh2 {[%emt 0:00:00]} 51. Be3 {[%emt 0:01:13]} Nf3 {[%emt 0:00:00]} 52. Be2 {[%emt 0:00:58]} Ne5 {[%emt 0:01:16]} 53. Bd4 {[%emt 0:00:28]} Nc6 {[%emt 0:00:16]} 54. Bf2 {[%emt 0:00:14]} Ne5 {[%emt 0:01:17]} 55. Nf1 {[%emt 0:00:00]} Rh7 {[%emt 0:01:47]} 56. Kd2 {[%emt 0:00:19]} Bg4 {[%emt 0:00:27]} 57. Bxg4 {[%emt 0:01:14]} Nxg4 {[%emt 0:00:00]} 58. Bd4 {[%emt 0:00:14]} Kb7 {[%emt 0:00:00]} 59. b4 {[%emt 0:00:00]} Rh3 {[%emt 0:00:34]} 60. Nfe3 {[%emt 0:01:28]} Nxe3 {[%emt 0:00:37]} 61. Nxe3 {[%emt 0:00:00]} Kc6 {[%emt 0:00:50]} 62. Kc3 {[%emt 0:00:00]} Rh1 {[%emt 0:00:00]} 63. Nf5 {[%emt 0:00:04]} Ra1 {[%emt 0:00:00]} 64. Kb2 {[%emt 0:00:09]} Rf1 {[%emt 0:00:00]} 65. Ne3 {[%emt 0:00:39]} Rf4 {[%emt 0:00:00]} 66. c3 {[%emt 0:00:18]} Kd6 {[%emt 0:00:32]} 67. Kb3 {[%emt 0:00:00]} Rf7 {[%emt 0:01:31]} 68. a4 {[%emt 0:00:07]} Ke6 {[%emt 0:00:15]} 69. axb5 {[%emt 0:01:17]} axb5 {[%emt 0:00:02]} 70. Kc2 {[%emt 0:00:20]} Rh7 {[%emt 0:00:17]} 71. Kd3 {[%emt 0:00:17]} Rh3 {[%emt 0:00:10]} 72. Ba7 {[%emt 0:00:28]} Kd6 {[%emt 0:01:11]} 73. Bb8+ {[%emt 0:00:06]} Kc6 {[%emt 0:00:25]} 74. Kd2 {[%emt 0:00:41]} Rh8 {[%emt 0:00:58]} 75. Bg3 {[%emt 0:00:13]} Rg8 {[%emt 0:01:02]} 76. Nf5 {[%emt 0:00:42]} Rg4 {[%emt 0:00:37]} 77. Nd4+ {[%emt 0:00:18]} Kb6 {[%emt 0:00:02]} 78. Bd6 {[%emt 0:00:32]} Re4 {[%emt 0:00:33]} 79. Bc5+ {[%emt 0:00:16]} Ka6 {[%emt 0:00:06]} 80. Kd3 {[%emt 0:00:10]} Re1 {[%emt 0:01:25]} 81. Nf5 {[%emt 0:00:31]} Rd1+ {[%emt 0:01:23]} 82. Kc2 {[%emt 0:00:00]} Rh1 {[%emt 0:00:18]} 83. Ne7 {[%emt 0:00:04]} Rh5 {[%emt 0:00:09]} 84. Kd3 {[%emt 0:00:05]} Kb7 {[%emt 0:00:14]} 85. Kd4 {[%emt 0:00:18]} Kc7 {[%emt 0:00:28]} 86. Nxd5+ {[%emt 0:00:19]} Kc6 {[%emt 0:00:09]} 87. Ne3 {[%emt 0:00:23]} Rh4+ {[%emt 0:00:45]} 88. Kd3 {[%emt 0:00:16]} Rf4 {[%emt 0:00:36]} 89. Kc2 {[%emt 0:01:05]} Rh4 {[%emt 0:00:31]} 90. Kb3 {[%emt 0:00:01]} Kb7 {[%emt 0:00:32]} 91. Kc2 {[%emt 0:02:23]} Rh2+ {[%emt 0:00:48]} 92. Kd3 {[%emt 0:00:00]} Rh4 {[%emt 0:00:01]} 93. Bd4 {[%emt 0:00:06]} Kc6 {[%emt 0:00:32]} 94. c4 {[%emt 0:00:15]} bxc4+ {[%emt 0:00:01]} 95. Kxc4 {[%emt 0:00:01]} Rh5 {[%emt 0:01:15]} 96. Ng4 {[%emt 0:00:10]} Rh1 {[%emt 0:00:41]} 97. Ne5+ {[%emt 0:00:10]} Kd6 {[%emt 0:00:02]} 98. Nd3 {[%emt 0:00:25]} Rh4 {[%emt 0:00:53]} 99. b5 {[%emt 0:00:21]} Re4 {[%emt 0:00:47]} 100. Nc5 {[%emt 0:01:07]} Rh4 {[%emt 0:00:04]} 101. Nb3 {[%emt 0:00:17]} Rh5 {[%emt 0:00:29]} 102. Bc5+ {[%emt 0:00:27]} Kd7 {[%emt 0:00:25]} 103. Kb4 {[%emt 0:02:08]} Ke6 {[%emt 0:00:45]} 104. b6 {[%emt 0:00:56]} Rh8 {[%emt 0:00:41]} 105. Kb5 {[%emt 0:00:37]} Kd5 {[%emt 0:00:04]} 106. b7 {[%emt 0:00:48]} Rb8 {[%emt 0:00:09]} 107. Na5 {[%emt 0:00:06]} Ke6 {[%emt 0:00:08]} 108. Ba7 {[%emt 0:00:12]} Rg8 {[%emt 0:00:11]} 109. Nc6 {[%emt 0:01:29]} Kd7 {[%emt 0:00:47]} 110. Bb6 {[%emt 0:00:23]} Rg5+ {[%emt 0:00:24]} 111. Ka6 {[%emt 0:00:18]} Rg8 {[%emt 0:00:10]} 112. Nd8 {[%emt 0:00:09]} 1-0

[Event "2019 National Open"]
[Site "Las Vegas"]
[Date "2019.06.16"]
[Round "9"]
[White "Nestorovic, Nikola"]
[Black "Ippolito, Dean"]
[Result "0-1"]
[ECO "C42"]
[WhiteElo "2481"]
[BlackElo "2331"]
[PlyCount "72"]
[EventDate "2019.??.??"]
[TimeControl "5400+30"]
[WhiteClock "0:05:44"]
[BlackClock "0:10:47"]

1. e4 {[%emt 0:00:00]} e5 {[%emt 0:00:03]} 2. Nf3 {[%emt 0:00:04]} Nf6 {[%emt 0:00:04]} 3. Nxe5 {[%emt 0:00:10]} d6 {[%emt 0:00:01]} 4. Nf3 {[%emt 0:00:04]} Nxe4 {[%emt 0:00:00]} 5. Nc3 {[%emt 0:00:05]} Nxc3 {[%emt 0:00:02]} 6. dxc3 {[%emt 0:00:05]} Be7 {[%emt 0:00:10]} 7. Be3 {[%emt 0:00:58]} O-O {[%emt 0:00:06]} 8. Qd2 {[%emt 0:00:06]} Nd7 {[%emt 0:00:12]} 9. O-O-O {[%emt 0:00:54]} c6 {[%emt 0:00:03]} 10. c4 {[%emt 0:07:25]} Nf6 {[%emt 0:03:21]} 11. Bd3 {[%emt 0:02:29]} d5 {[%emt 0:02:59]} 12. Rhe1 {[%emt 0:05:42]} Ne4 {[%emt 0:14:10]} 13. Qe2 {[%emt 0:01:54]} Qa5 {[%emt 0:04:14]} 14. Kb1 {[%emt 0:00:05]} Bb4 {[%emt 0:10:08]} 15. cxd5 {[%emt 0:07:52]} cxd5 {[%emt 0:06:02]} 16. Bd2 {[%emt 0:12:29]} Bf5 {[%emt 0:13:49]} 17. a3 {[%emt 0:06:16]} Bxd2 {[%emt 0:11:18]} 18. Nxd2 {[%emt 0:00:28]} Rae8 {[%emt 0:00:46]} 19. Nxe4 {[%emt 0:12:41]} dxe4 {[%emt 0:04:36]} 20. Bc4 {[%emt 0:00:10]} Qc7 {[%emt 0:06:23]} 21. h3 {[%emt 0:00:05]} Be6 {[%emt 0:10:21]} 22. Rd4 {[%emt 0:02:46]} f5 {[%emt 0:05:03]} 23. f3 {[%emt 0:03:01]} Bxc4 {[%emt 0:00:52]} 24. Rxc4 {[%emt 0:07:44]} exf3 {[%emt 0:00:25]} 25. Rxc7 {[%emt 0:00:03]} fxe2 {[%emt 0:03:00]} 26. Rxb7 {[%emt 0:08:41]} Rf6 {[%emt 0:00:03]} 27. Rb3 {[%emt 0:01:00]} Rg6 {[%emt 0:00:48]} 28. g3 {[%emt 0:00:00]} Rd6 {[%emt 0:00:51]} 29. Kc1 {[%emt 0:07:22]} g5 {[%emt 0:00:08]} 30. c4 {[%emt 0:01:12]} f4 {[%emt 0:00:49]} 31. gxf4 {[%emt 0:00:22]} gxf4 {[%emt 0:00:00]} 32. c5 {[%emt 0:02:28]} Rd5 {[%emt 0:00:39]} 33. Rc3 {[%emt 0:00:08]} Rf5 {[%emt 0:00:20]} 34. Rf3 {[%emt 0:01:43]} Rxc5+ {[%emt 0:00:00]} 35. Kd2 {[%emt 0:00:02]} Rd5+ {[%emt 0:00:13]} 36. Kc3 {[%emt 0:00:39]} Rd1 {[%emt 0:00:17]} 0-1